[Event "NOR-ch Various 2019"]
[Site "Larvik"]
[Date "2019.07.08"]
[Round "3.6"]
[White "Olsen, Ulrik"]
[Black "Runde, Hans Arild"]
[Result "0-1"]
[ECO "D02"]
[WhiteElo "1905"]
[BlackElo "1876"]
[Annotator "NA"]
[PlyCount "56"]
[EventDate "2019.07.06"]
[EventType "swiss"]
[EventCountry "NOR"]
[SourceTitle "playchess.com"]
[Source "ChessBase"]
[SourceQuality "1"]
[TimeControl "40/5400+30:1800+30"]

1. Nf3 {[%emt 0:00:00]} Nf6 {[%emt 0:04:20]} 2. d4 {[%emt 0:00:00]} e6 {[%emt 0:02:01]} 3. g3 {[%emt 0:00:00]} d5 {[%emt 0:02:09]} 4. Bg2 {[%emt 0:00:31]} g6 {[%emt 0:00:44]} 5. O-O {[%emt 0:00:11]} Bg7 {[%emt 0:00:06]} 6. Nbd2 {[%emt 0:01:39]} O-O {[%emt 0:00:29]} 7. c3 {[%emt 0:02:45]} Nbd7 {[%emt 0:01:08]} 8. Qc2 {[%emt 0:01:04]} c5 {[%emt 0:06:39]} 9. e4 {[%emt 0:06:25]} dxe4 {[%emt 0:10:15]} 10. Nxe4 {[%emt 0:00:30]} cxd4 {[%emt 0:08:29]} 11. Nxd4 {[%emt 0:01:24]} Nxe4 {[%emt 0:01:46]} 12. Qxe4 {[%emt 0:04:09]} e5 {[%emt 0:08:36]} 13. Nb3 {[%emt 0:02:55]} a5 {[%emt 0:02:50]} 14. Be3 {[%emt 0:12:09]} Qc7 {[%emt 0:04:06]} 15. a4 {[%emt 0:04:27]} Nf6 {[%emt 0:05:40]} 16. Qh4 {[%emt 0:08:30]} Ng4 {[%emt 0:01:00]} 17. Bc1 {[%emt 0:24:39]} h6 {[%emt 0:09:43]} 18. Bf3 {[%emt 0:00:31]} Bf6 {[%emt 0:05:54]} 19. Qh3 {[%emt 0:00:14]} Ne3 {[%emt 0:00:48]} 20. Qxh6 {[%emt 0:01:11]} Nxf1 {[%emt 0:00:10]} 21. Bd5 {[%emt 0:00:19]} Bf5 {[%emt 0:02:50]} 22. Kxf1 {[%emt 0:02:23]} Rfd8 {[%emt 0:01:43]} 23. c4 {[%emt 0:05:58]} Rxd5 {[%emt 0:00:20]} 24. cxd5 {[%emt 0:00:06]} Qc4+ {[%emt 0:00:12]} 25. Kg1 {[%emt 0:00:31]} Qxb3 {[%emt 0:00:14]} 26. h4 {[%emt 0:01:10]} Qd1+ {[%emt 0:02:19]} 27. Kh2 {[%emt 0:01:12]} Qf1 {[%emt 0:00:55]} 28. Qe3 {[%emt 0:02:17]} Rc8 {[%emt 0:02:59]} 0-1

[Event "NOR-ch Various 2019"]
[Site "Larvik"]
[Date "2019.07.08"]
[Round "3.7"]
[White "Jacobsen, Trond"]
[Black "Pettersen, Joran Sten"]
[Result "1/2-1/2"]
[ECO "A85"]
[WhiteElo "1651"]
[BlackElo "1785"]
[Annotator "NA"]
[PlyCount "65"]
[EventDate "2019.07.06"]
[EventType "swiss"]
[EventCountry "NOR"]
[SourceTitle "playchess.com"]
[Source "ChessBase"]
[SourceQuality "1"]
[TimeControl "40/5400+30:1800+30"]

1. d4 {[%emt 0:00:00]} e6 {[%emt 0:00:00]} 2. c4 {[%emt 0:00:00]} f5 {[%emt 0:00:44]} 3. Nc3 {[%emt 0:01:49]} Nf6 {[%emt 0:00:15]} 4. g3 {[%emt 0:00:33]} d5 {[%emt 0:01:16]} 5. cxd5 {[%emt 0:00:57]} exd5 {[%emt 0:00:13]} 6. Bg5 {[%emt 0:05:46]} c6 {[%emt 0:01:47]} 7. Bxf6 {[%emt 0:04:21]} Qxf6 {[%emt 0:00:24]} 8. Nf3 {[%emt 0:02:40]} Bd6 {[%emt 0:03:48]} 9. e3 {[%emt 0:02:47]} Nd7 {[%emt 0:06:26]} 10. a3 {[%emt 0:04:00]} a5 {[%emt 0:01:32]} 11. Rb1 {[%emt 0:05:40]} Qe7 {[%emt 0:03:30]} 12. Na4 {[%emt 0:08:14]} O-O {[%emt 0:04:01]} 13. Be2 {[%emt 0:02:31]} b5 {[%emt 0:19:10]} 14. Nc3 {[%emt 0:00:08]} Nf6 {[%emt 0:01:25]} 15. Rc1 {[%emt 0:05:05]} Bd7 {[%emt 0:02:13]} 16. O-O {[%emt 0:04:37]} Ne4 {[%emt 0:01:54]} 17. Nb1 {[%emt 0:09:02]} a4 {[%emt 0:05:45]} 18. Nbd2 {[%emt 0:03:37]} Kh8 {[%emt 0:09:21]} 19. Ne1 {[%emt 0:01:55]} Rae8 {[%emt 0:02:55]} 20. Bh5 {[%emt 0:03:46]} g6 {[%emt 0:00:29]} 21. Bf3 {[%emt 0:00:10]} Nf6 {[%emt 0:06:04]} 22. Nd3 {[%emt 0:02:56]} g5 {[%emt 0:01:09]} 23. Nc5 {[%emt 0:06:03]} f4 {[%emt 0:02:16]} 24. Nxd7 {[%emt 0:01:16]} Qxd7 {[%emt 0:00:20]} 25. exf4 {[%emt 0:04:29]} gxf4 {[%emt 0:00:53]} 26. Re1 {[%emt 0:01:49]} fxg3 {[%emt 0:03:03]} 27. hxg3 {[%emt 0:04:03]} Qh3 {[%emt 0:07:12]} 28. Bg2 {[%emt 0:01:18]} Qd7 {[%emt 0:02:35]} 29. Rxe8 {[%emt 0:02:24]} Qxe8 {[%emt 0:00:18]} 30. Rc3 {[%emt 0:03:03]} Rf7 {[%emt 0:05:50]} 31. Re3 {[%emt 0:01:20]} Re7 {[%emt 0:01:25]} 32. Rxe7 {[%emt 0:01:58]} Qxe7 {[%emt 0:00:22]} 33. Kf1 {[%emt 0:04:50]} 1/2-1/2

[Event "NOR-ch Various 2019"]
[Site "Larvik"]
[Date "2019.07.08"]
[Round "3.8"]
[White "Aasen, Fredrik"]
[Black "Odegaard, Per Chr"]
[Result "1/2-1/2"]
[ECO "A36"]
[WhiteElo "1606"]
[BlackElo "1754"]
[Annotator "NA"]
[PlyCount "56"]
[EventDate "2019.07.06"]
[EventType "swiss"]
[EventCountry "NOR"]
[SourceTitle "playchess.com"]
[Source "ChessBase"]
[SourceQuality "1"]
[TimeControl "40/5400+30:1800+30"]

1. c4 {[%emt 0:00:00]} c5 {[%emt 0:01:48]} 2. g3 {[%emt 0:00:00]} Nc6 {[%emt 0:01:34]} 3. Bg2 {[%emt 0:00:07]} Nf6 {[%emt 0:01:42]} 4. Nc3 {[%emt 0:00:12]} g6 {[%emt 0:01:48]} 5. e4 {[%emt 0:02:10]} Bg7 {[%emt 0:03:00]} 6. Nge2 {[%emt 0:01:12]} d6 {[%emt 0:01:49]} 7. d3 {[%emt 0:01:58]} O-O {[%emt 0:03:58]} 8. O-O {[%emt 0:00:13]} a6 {[%emt 0:03:40]} 9. h3 {[%emt 0:02:42]} Rb8 {[%emt 0:01:48]} 10. a4 {[%emt 0:01:31]} Nd4 {[%emt 0:06:50]} 11. Nxd4 {[%emt 0:01:02]} cxd4 {[%emt 0:00:18]} 12. Ne2 {[%emt 0:00:40]} e5 {[%emt 0:03:22]} 13. a5 {[%emt 0:03:28]} b5 {[%emt 0:02:18]} 14. axb6 {[%emt 0:04:59]} Rxb6 {[%emt 0:00:49]} 15. f4 {[%emt 0:05:13]} Nd7 {[%emt 0:02:46]} 16. f5 {[%emt 0:05:50]} Nc5 {[%emt 0:01:20]} 17. g4 {[%emt 0:08:34]} Nb3 {[%emt 0:08:25]} 18. Ra3 {[%emt 0:02:07]} Nxc1 {[%emt 0:02:14]} 19. Qxc1 {[%emt 0:00:09]} Qh4 {[%emt 0:02:07]} 20. Ra2 {[%emt 0:10:48]} Bh6 {[%emt 0:03:57]} 21. Qe1 {[%emt 0:05:02]} Be3+ {[%emt 0:03:51]} 22. Kh2 {[%emt 0:00:57]} Qxe1 {[%emt 0:04:10]} 23. Rxe1 {[%emt 0:00:04]} Bd7 {[%emt 0:01:29]} 24. Rb1 {[%emt 0:09:06]} Rfb8 {[%emt 0:01:38]} 25. b4 {[%emt 0:02:17]} Kg7 {[%emt 0:07:22]} 26. Rab2 {[%emt 0:01:42]} g5 {[%emt 0:02:21]} 27. Kh1 {[%emt 0:05:18]} f6 {[%emt 0:01:23]} 28. Ng3 {[%emt 0:05:09]} Be8 {[%emt 0:02:52]} 1/2-1/2

[Event "NOR-ch Various 2019"]
[Site "Larvik"]
[Date "2019.07.08"]
[Round "3.9"]
[White "Selvik, Kjetil"]
[Black "Johansen, Aleksander"]
[Result "0-1"]
[ECO "D00"]
[WhiteElo "1493"]
[BlackElo "1518"]
[Annotator "NA"]
[PlyCount "78"]
[EventDate "2019.07.06"]
[EventType "swiss"]
[EventCountry "NOR"]
[SourceTitle "playchess.com"]
[Source "ChessBase"]
[SourceQuality "1"]
[TimeControl "40/5400+30:1800+30"]

1. d4 {[%emt 0:00:09]} d5 {[%emt 0:00:10]} 2. Nc3 {[%emt 0:00:09]} Bf5 {[%emt 0:01:51]} 3. f3 {[%emt 0:00:23]} Nf6 {[%emt 0:02:14]} 4. g4 {[%emt 0:00:20]} Bg6 {[%emt 0:05:51]} 5. h4 {[%emt 0:00:09]} h5 {[%emt 0:01:46]} 6. g5 {[%emt 0:00:31]} Ng8 {[%emt 0:01:52]} 7. Bf4 {[%emt 0:00:20]} e6 {[%emt 0:00:50]} 8. e3 {[%emt 0:02:15]} Bd6 {[%emt 0:04:45]} 9. Bd3 {[%emt 0:03:53]} Bxf4 {[%emt 0:09:05]} 10. exf4 {[%emt 0:00:10]} Bxd3 {[%emt 0:01:20]} 11. Qxd3 {[%emt 0:00:10]} Ne7 {[%emt 0:00:37]} 12. O-O-O {[%emt 0:00:26]} g6 {[%emt 0:04:22]} 13. Qb5+ {[%emt 0:01:46]} c6 {[%emt 0:03:11]} 14. Qxb7 {[%emt 0:02:10]} Nd7 {[%emt 0:00:01]} 15. Qa6 {[%emt 0:00:31]} Nb6 {[%emt 0:05:59]} 16. Na4 {[%emt 0:04:33]} O-O {[%emt 0:05:14]} 17. Nc5 {[%emt 0:06:08]} Qc7 {[%emt 0:01:12]} 18. Ne2 {[%emt 0:00:56]} Nc4 {[%emt 0:06:30]} 19. Rd3 {[%emt 0:02:23]} Nf5 {[%emt 0:03:23]} 20. Rb3 {[%emt 0:06:24]} Nxd4 {[%emt 0:01:14]} 21. Nxd4 {[%emt 0:03:10]} Qxf4+ {[%emt 0:00:28]} 22. Kb1 {[%emt 0:00:55]} Qxd4 {[%emt 0:02:59]} 23. Nd7 {[%emt 0:01:20]} Nd2+ {[%emt 0:00:56]} 24. Ka1 {[%emt 0:00:43]} Nxb3+ {[%emt 0:00:03]} 25. cxb3 {[%emt 0:01:19]} Rfc8 {[%emt 0:02:30]} 26. Qe2 {[%emt 0:03:02]} c5 {[%emt 0:03:48]} 27. Rd1 {[%emt 0:11:13]} Qf4 {[%emt 0:02:43]} 28. Nf6+ {[%emt 0:05:10]} Kg7 {[%emt 0:02:24]} 29. Qc2 {[%emt 0:06:49]} Rc7 {[%emt 0:05:44]} 30. Qc3 {[%emt 0:00:29]} d4 {[%emt 0:00:49]} 31. Qd3 {[%emt 0:03:23]} Qxh4 {[%emt 0:05:04]} 32. Ne4 {[%emt 0:01:06]} Qf4 {[%emt 0:05:46]} 33. Re1 {[%emt 0:00:45]} Rd8 {[%emt 0:02:44]} 34. Kb1 {[%emt 0:01:06]} Qf5 {[%emt 0:01:13]} 35. Ka1 {[%emt 0:02:53]} h4 {[%emt 0:03:44]} 36. Rh1 {[%emt 0:00:06]} h3 {[%emt 0:00:48]} 37. Qf1 {[%emt 0:00:29]} Rh8 {[%emt 0:01:20]} 38. Qe2 {[%emt 0:00:51]} Qf4 {[%emt 0:00:56]} 39. Rh2 {[%emt 0:06:59]} Qc1# {[%emt 0:00:16]} 0-1

[Event "NOR-ch Various 2019"]
[Site "Larvik"]
[Date "2019.07.08"]
[Round "3.10"]
[White "Wullum, Robin"]
[Black "Almli, Asmund"]
[Result "1-0"]
[ECO "D02"]
[WhiteElo "1452"]
[BlackElo "1511"]
[Annotator "NA RC"]
[PlyCount "55"]
[EventDate "2019.07.06"]
[EventType "swiss"]
[EventCountry "NOR"]
[SourceTitle "playchess.com"]
[Source "ChessBase"]
[SourceQuality "1"]
[TimeControl "40/5400+30:1800+30"]

1. d4 {[%emt 0:01:43]} d5 {[%emt 0:00:00]} 2. Bf4 {[%emt 0:00:09]} e6 {[%emt 0:01:27]} 3. e3 {[%emt 0:01:10]} Nf6 {[%emt 0:02:24]} 4. Nf3 {[%emt 0:00:11]} a6 {[%emt 0:01:10]} 5. Bd3 {[%emt 0:00:25]} c5 {[%emt 0:01:11]} 6. c3 {[%emt 0:00:06]} Bd6 {[%emt 0:02:15]} 7. Bxd6 {[%emt 0:03:49]} Qxd6 {[%emt 0:00:07]} 8. Nbd2 {[%emt 0:00:05]} c4 {[%emt 0:01:14]} 9. Bc2 {[%emt 0:00:38]} Bd7 {[%emt 0:03:09]} 10. Qe2 {[%emt 0:00:24]} Nc6 {[%emt 0:03:08]} 11. e4 {[%emt 0:03:27]} Qe7 {[%emt 0:06:39]} 12. O-O {[%emt 0:01:46]} O-O {[%emt 0:01:29]} 13. e5 {[%emt 0:00:06]} Ne8 {[%emt 0:01:23]} 14. h3 {[%emt 0:06:22]} f6 {[%emt 0:00:37]} 15. Nh2 {[%emt 0:00:39]} fxe5 {[%emt 0:04:05]} 16. dxe5 {[%emt 0:00:09]} Qc5 {[%emt 0:01:01]} 17. Ndf3 {[%emt 0:06:55]} b5 {[%emt 0:19:31]} 18. a3 {[%emt 0:00:26]} a5 {[%emt 0:06:21]} 19. Ng4 {[%emt 0:04:38]} b4 {[%emt 0:06:58]} 20. axb4 {[%emt 0:00:41]} Qb6 {[%emt 0:02:38]} 21. bxa5 {[%emt 0:01:15]} Rxa5 {[%emt 0:00:12]} 22. Ng5 {[%emt 0:02:01]} Rxa1 {[%emt 0:02:23]} 23. Rxa1 {[%emt 0:00:24]} g6 {[%emt 0:05:03]} 24. Qd2 {[%emt 0:01:41]} h5 {[%emt 0:06:37]} 25. Nh6+ {[%emt 0:07:17]} Kg7 {[%emt 0:00:30]} 26. Re1 {[%emt 0:01:13]} d4 {[%emt 0:06:06]} 27. g4 {[%emt 0:02:10]} dxc3 {[%emt 0:03:25]} 28. Qxd7+ {[%emt 0:00:10]} 1-0

[Event "NOR-ch Various 2019"]
[Site "Larvik"]
[Date "2019.07.08"]
[Round "3.11"]
[White "Skretteberg, Martin"]
[Black "Bu, Knut Steinar"]
[Result "1-0"]
[ECO "C42"]
[WhiteElo "1397"]
[BlackElo "1338"]
[Annotator "NA"]
[PlyCount "147"]
[EventDate "2019.07.06"]
[EventType "swiss"]
[EventCountry "NOR"]
[SourceTitle "playchess.com"]
[Source "ChessBase"]
[SourceQuality "1"]
[TimeControl "40/5400+30:1800+30"]

1. e4 {[%emt 0:00:00]} e5 {[%emt 0:00:00]} 2. Nf3 {[%emt 0:00:20]} Nf6 {[%emt 0:00:00]} 3. Nc3 {[%emt 0:00:53]} Bb4 {[%emt 0:00:04]} 4. d3 {[%emt 0:00:14]} d6 {[%emt 0:00:55]} 5. Bd2 {[%emt 0:02:05]} O-O {[%emt 0:02:00]} 6. Be2 {[%emt 0:03:15]} c6 {[%emt 0:06:19]} 7. O-O {[%emt 0:03:42]} Re8 {[%emt 0:03:37]} 8. Nb1 {[%emt 0:05:30]} Bxd2 {[%emt 0:02:00]} 9. Nbxd2 {[%emt 0:00:17]} d5 {[%emt 0:00:36]} 10. exd5 {[%emt 0:06:39]} cxd5 {[%emt 0:01:56]} 11. d4 {[%emt 0:05:44]} e4 {[%emt 0:07:53]} 12. Ne5 {[%emt 0:00:11]} Nfd7 {[%emt 0:00:26]} 13. Bb5 {[%emt 0:04:22]} a6 {[%emt 0:03:19]} 14. Ba4 {[%emt 0:06:59]} b5 {[%emt 0:00:31]} 15. Nxd7 {[%emt 0:00:26]} Nxd7 {[%emt 0:02:07]} 16. Bb3 {[%emt 0:00:11]} Nf6 {[%emt 0:00:54]} 17. h3 {[%emt 0:04:44]} Ra7 {[%emt 0:08:55]} 18. Re1 {[%emt 0:02:07]} Rae7 {[%emt 0:01:41]} 19. Nf1 {[%emt 0:00:44]} Bf5 {[%emt 0:04:11]} 20. Ne3 {[%emt 0:00:20]} Be6 {[%emt 0:02:41]} 21. c3 {[%emt 0:04:45]} Qc8 {[%emt 0:03:37]} 22. a4 {[%emt 0:10:03]} Qb7 {[%emt 0:02:59]} 23. axb5 {[%emt 0:01:53]} axb5 {[%emt 0:08:34]} 24. Qe2 {[%emt 0:03:11]} Ra8 {[%emt 0:07:13]} 25. Ra2 {[%emt 0:09:23]} Ree8 {[%emt 0:03:38]} 26. Rea1 {[%emt 0:03:07]} g6 {[%emt 0:05:27]} 27. Rxa8 {[%emt 0:05:19]} Rxa8 {[%emt 0:00:08]} 28. Rxa8+ {[%emt 0:00:12]} Qxa8 {[%emt 0:00:11]} 29. Kh2 {[%emt 0:01:56]} Qc6 {[%emt 0:01:08]} 30. Nc2 {[%emt 0:00:55]} Qc7+ {[%emt 0:03:05]} 31. Kg1 {[%emt 0:00:33]} Qd7 {[%emt 0:04:47]} 32. Nb4 {[%emt 0:01:28]} Nh5 {[%emt 0:01:48]} 33. Qe3 {[%emt 0:00:51]} Kg7 {[%emt 0:00:50]} 34. Bd1 {[%emt 0:01:15]} Nf6 {[%emt 0:00:14]} 35. f3 {[%emt 0:00:27]} Bxh3 {[%emt 0:01:29]} 36. gxh3 {[%emt 0:01:25]} Qxh3 {[%emt 0:00:06]} 37. Qf2 {[%emt 0:00:16]} Qf5 {[%emt 0:01:28]} 38. fxe4 {[%emt 0:01:41]} Qxe4 {[%emt 0:00:44]} 39. Bf3 {[%emt 0:00:59]} Qb1+ {[%emt 0:03:09]} 40. Kg2 {[%emt 0:00:32]} Qf5 {[%emt 0:00:05]} 41. Bxd5 {[%emt 0:40:43]} Qg5+ {[%emt 0:31:25]} 42. Qg3 {[%emt 0:00:30]} Qd2+ {[%emt 0:00:28]} 43. Kh3 {[%emt 0:00:00]} Qh6+ {[%emt 0:00:00]} 44. Kg2 {[%emt 0:00:00]} Qd2+ {[%emt 0:00:00]} 45. Kf3 {[%emt 0:00:00]} Qd1+ {[%emt 0:00:00]} 46. Kg2 {[%emt 0:00:00]} Qe2+ {[%emt 0:00:00]} 47. Kg1 {[%emt 0:00:00]} Qd1+ {[%emt 0:00:00]} 48. Kh2 {[%emt 0:00:00]} Qh5+ {[%emt 0:00:00]} 49. Qh3 {[%emt 0:00:00]} Qg5 {[%emt 0:00:00]} 50. Bf3 {[%emt 0:00:00]} Qf4+ {[%emt 0:00:00]} 51. Qg3 {[%emt 0:00:00]} Qh6+ {[%emt 0:00:00]} 52. Kg2 {[%emt 0:00:00]} Qd2+ {[%emt 0:00:00]} 53. Qf2 {[%emt 0:00:00]} Qg5+ {[%emt 0:00:00]} 54. Kf1 {[%emt 0:00:00]} Qc1+ {[%emt 0:00:00]} 55. Qe1 {[%emt 0:00:00]} Qf4 {[%emt 0:00:00]} 56. Qe2 {[%emt 0:00:00]} Qf5 {[%emt 0:00:00]} 57. Ke1 {[%emt 0:00:00]} Qb1+ {[%emt 0:00:00]} 58. Kf2 {[%emt 0:00:00]} Qf5 {[%emt 0:00:00]} 59. Ke3 {[%emt 0:00:00]} g5 {[%emt 0:00:00]} 60. Kd2 {[%emt 0:00:00]} g4 {[%emt 0:00:00]} 61. Bc6 {[%emt 0:00:00]} h5 {[%emt 0:00:00]} 62. Qxb5 {[%emt 0:00:00]} Qf4+ {[%emt 0:00:00]} 63. Kc2 {[%emt 0:00:00]} h4 {[%emt 0:00:00]} 64. Nd3 {[%emt 0:00:00]} Qd6 {[%emt 0:00:00]} 65. Qg5+ {[%emt 0:00:00]} Kf8 {[%emt 0:00:00]} 66. Qh6+ {[%emt 0:00:00]} Kg8 {[%emt 0:00:45]} 67. Ne5 {[%emt 0:00:39]} Qe6 {[%emt 0:03:33]} 68. Qxh4 {[%emt 0:01:29]} Qf5+ {[%emt 0:00:49]} 69. Nd3 {[%emt 0:01:02]} Qf1 {[%emt 0:01:27]} 70. Qg5+ {[%emt 0:01:32]} Kf8 {[%emt 0:00:10]} 71. Ne5 {[%emt 0:00:45]} Qf2+ {[%emt 0:00:44]} 72. Kb3 {[%emt 0:00:55]} g3 {[%emt 0:00:24]} 73. Qxf6 {[%emt 0:01:32]} Qxf6 {[%emt 0:00:21]} 74. Nd7+ {[%emt 0:00:18]} 1-0

[Event "NOR-ch Various 2019"]
[Site "Larvik"]
[Date "2019.07.08"]
[Round "3.12"]
[White "Ratama, Sofie Kristine"]
[Black "Lotz, Corinna"]
[Result "1/2-1/2"]
[ECO "B01"]
[WhiteElo "1329"]
[BlackElo "1383"]
[Annotator "NA"]
[PlyCount "69"]
[EventDate "2019.07.06"]
[EventType "swiss"]
[EventCountry "NOR"]
[SourceTitle "playchess.com"]
[Source "ChessBase"]
[SourceQuality "1"]
[TimeControl "40/5400+30:1800+30"]

1. e4 {[%emt 0:00:00]} d5 {[%emt 0:00:00]} 2. exd5 {[%emt 0:00:00]} Qxd5 {[%emt 0:00:00]} 3. Nc3 {[%emt 0:00:14]} Qa5 {[%emt 0:00:00]} 4. d4 {[%emt 0:00:26]} c6 {[%emt 0:00:21]} 5. Nf3 {[%emt 0:00:53]} Nd7 {[%emt 0:01:48]} 6. Bc4 {[%emt 0:01:35]} e6 {[%emt 0:00:16]} 7. Bd2 {[%emt 0:01:15]} Qc7 {[%emt 0:00:19]} 8. O-O {[%emt 0:01:42]} Ngf6 {[%emt 0:00:05]} 9. h3 {[%emt 0:01:20]} Bd6 {[%emt 0:00:08]} 10. Qe2 {[%emt 0:02:40]} O-O {[%emt 0:00:22]} 11. a3 {[%emt 0:01:36]} b5 {[%emt 0:00:42]} 12. Bb3 {[%emt 0:00:28]} Bb7 {[%emt 0:00:25]} 13. Rfe1 {[%emt 0:01:59]} Rae8 {[%emt 0:04:02]} 14. Be3 {[%emt 0:03:08]} a6 {[%emt 0:00:27]} 15. Qd2 {[%emt 0:01:43]} c5 {[%emt 0:04:25]} 16. dxc5 {[%emt 0:02:37]} Bxc5 {[%emt 0:03:35]} 17. Nd4 {[%emt 0:03:18]} Bxd4 {[%emt 0:05:13]} 18. Bxd4 {[%emt 0:03:03]} Qc6 {[%emt 0:00:31]} 19. Qg5 {[%emt 0:03:09]} e5 {[%emt 0:01:57]} 20. Be3 {[%emt 0:01:45]} h6 {[%emt 0:00:32]} 21. Qg3 {[%emt 0:00:19]} Kh8 {[%emt 0:07:34]} 22. Qh2 {[%emt 0:04:20]} Nc5 {[%emt 0:03:46]} 23. Bxc5 {[%emt 0:01:06]} Qxc5 {[%emt 0:00:11]} 24. Rad1 {[%emt 0:00:54]} e4 {[%emt 0:08:22]} 25. Qd6 {[%emt 0:02:54]} Qc8 {[%emt 0:08:35]} 26. Qd4 {[%emt 0:02:24]} Rd8 {[%emt 0:08:20]} 27. Qe3 {[%emt 0:00:21]} Rd7 {[%emt 0:01:34]} 28. Rxd7 {[%emt 0:02:28]} Qxd7 {[%emt 0:00:15]} 29. Rd1 {[%emt 0:00:08]} Qc7 {[%emt 0:02:51]} 30. Rd4 {[%emt 0:02:45]} Re8 {[%emt 0:04:42]} 31. a4 {[%emt 0:04:11]} Bc6 {[%emt 0:07:33]} 32. axb5 {[%emt 0:00:49]} axb5 {[%emt 0:00:22]} 33. Rd1 {[%emt 0:05:27]} Re7 {[%emt 0:05:32]} 34. Rd4 {[%emt 0:03:51]} Qb7 {[%emt 0:02:34]} 35. Rd8+ {[%emt 0:02:15]} 1/2-1/2

[Event "NOR-ch Various 2019"]
[Site "Larvik"]
[Date "2019.07.08"]
[Round "3.16"]
[White "Boger, Raymond"]
[Black "Gyldenas, Ole Jorn"]
[Result "0-1"]
[ECO "D34"]
[WhiteElo "1957"]
[BlackElo "1957"]
[Annotator "NA"]
[PlyCount "86"]
[EventDate "2019.07.06"]
[EventType "swiss"]
[EventCountry "NOR"]
[SourceTitle "playchess.com"]
[Source "ChessBase"]
[SourceQuality "1"]
[TimeControl "40/5400+30:1800+30"]

1. c4 {[%emt 0:40:00]} Nf6 {[%emt 0:00:00]} 2. g3 {[%emt 0:00:08]} e6 {[%emt 0:00:50]} 3. Bg2 {[%emt 0:00:06]} d5 {[%emt 0:00:22]} 4. Nf3 {[%emt 0:00:27]} Be7 {[%emt 0:00:34]} 5. O-O {[%emt 0:00:09]} O-O {[%emt 0:00:23]} 6. d4 {[%emt 0:00:35]} c5 {[%emt 0:02:05]} 7. cxd5 {[%emt 0:02:37]} exd5 {[%emt 0:04:04]} 8. Nc3 {[%emt 0:02:17]} Nc6 {[%emt 0:05:41]} 9. h3 {[%emt 0:02:48]} h6 {[%emt 0:19:50]} 10. Be3 {[%emt 0:00:42]} b6 {[%emt 0:06:45]} 11. Qd2 {[%emt 0:05:12]} Ne4 {[%emt 0:08:45]} 12. Qd1 {[%emt 0:07:39]} Nxc3 {[%emt 0:09:45]} 13. bxc3 {[%emt 0:00:02]} c4 {[%emt 0:00:46]} 14. Qd2 {[%emt 0:01:39]} Bf5 {[%emt 0:05:44]} 15. Ne5 {[%emt 0:01:29]} Rc8 {[%emt 0:02:19]} 16. g4 {[%emt 0:02:36]} Be6 {[%emt 0:06:39]} 17. f4 {[%emt 0:00:30]} Rc7 {[%emt 0:00:10]} 18. f5 {[%emt 0:01:17]} Bc8 {[%emt 0:00:07]} 19. Bf4 {[%emt 0:00:56]} Bg5 {[%emt 0:05:29]} 20. Rae1 {[%emt 0:08:40]} Bxf4 {[%emt 0:05:13]} 21. Qxf4 {[%emt 0:00:44]} f6 {[%emt 0:00:45]} 22. Nxc6 {[%emt 0:01:31]} Rxc6 {[%emt 0:00:09]} 23. e4 {[%emt 0:00:06]} dxe4 {[%emt 0:01:37]} 24. Rxe4 {[%emt 0:01:03]} Rc7 {[%emt 0:02:15]} 25. d5 {[%emt 0:03:33]} Rd7 {[%emt 0:01:15]} 26. Rxc4 {[%emt 0:03:04]} Ba6 {[%emt 0:01:21]} 27. Rd1 {[%emt 0:02:00]} Bxc4 {[%emt 0:00:26]} 28. Qxc4 {[%emt 0:00:01]} Rd6 {[%emt 0:00:18]} 29. Re1 {[%emt 0:01:14]} Qc8 {[%emt 0:02:10]} 30. Qb4 {[%emt 0:04:34]} Qc7 {[%emt 0:01:14]} 31. c4 {[%emt 0:02:34]} Rc8 {[%emt 0:00:41]} 32. h4 {[%emt 0:01:16]} Qc5+ {[%emt 0:01:18]} 33. Qxc5 {[%emt 0:00:09]} Rxc5 {[%emt 0:00:06]} 34. Bf1 {[%emt 0:03:01]} Kf8 {[%emt 0:00:37]} 35. g5 {[%emt 0:01:41]} fxg5 {[%emt 0:01:15]} 36. hxg5 {[%emt 0:00:01]} hxg5 {[%emt 0:01:36]} 37. Kf2 {[%emt 0:01:17]} b5 {[%emt 0:01:16]} 38. Rb1 {[%emt 0:00:47]} bxc4 {[%emt 0:00:54]} 39. Rb8+ {[%emt 0:00:29]} Ke7 {[%emt 0:00:13]} 40. Ke3 {[%emt 0:00:22]} Rdxd5 {[%emt 0:00:42]} 41. Rb7+ {[%emt 0:03:55]} Kf6 {[%emt 0:04:20]} 42. Rxa7 {[%emt 0:00:16]} c3 {[%emt 0:00:52]} 43. Ra6+ {[%emt 0:01:20]} Kxf5 {[%emt 0:00:54] Kd4 Ke5+} 0-1